fUSD/lending_fUSD_20241009
["ID","MTS","AMOUNT","RATE_DAILY","PERIOD"]
[340079697,1728474658099,-1016.84,0.00040547,30]
[340079698,1728474658111,-500.0,0.00040547,30]
[340079699,1728474658120,-1821.33,0.00040547,30]
[340079700,1728474658130,-500.0,0.00040547,30]
[340079701,1728474658139,-500.0,0.00040547,30]
[340079702,1728474658149,-500.0,0.00040547,30]
[340079703,1728474658159,-990.39,0.00040547,30]
[340079704,1728474658168,-500.0,0.00040547,30]
[340079705,1728474658177,-5329.07,0.00040547,30]
[340079706,1728474658188,-151.0,0.00040547,14]
[340079707,1728474658197,-500.0,0.00040547,30]
[340079708,1728474658207,-743.21,0.00040547,30]
[340079709,1728474658216,-500.0,0.00040547,30]
[340079710,1728474658226,-580.88,0.00040547,30]
[340079711,1728474658236,-500.0,0.00040547,30]
[340079712,1728474658246,-557.49,0.00040547,30]
[340079713,1728474658256,-151.0,0.00040547,14]
[340079714,1728474658270,-500.0,0.00040547,30]
[340079715,1728474658280,-230.01389949,0.00040547,30]
[340079716,1728474658290,-151.0,0.00040547,14]
[340079717,1728474658300,-500.0,0.00040547,30]
[340079718,1728474658310,-500.0,0.00040547,30]
[340079719,1728474658320,-500.0,0.00040547,30]
[340079720,1728474658330,-1516.28,0.00040547,30]
[340079721,1728474658341,-500.0,0.00040547,30]
[340079722,1728474658351,-1601.85,0.00040547,30]
[340079723,1728474658360,-6541.43,0.00040547,30]
[340079724,1728474658370,-151.0,0.00040547,14]
[340079725,1728474658379,-500.0,0.00040547,30]
[340079726,1728474658389,-500.0,0.00040547,30]
[340079727,1728474658399,-511.66,0.00040547,30]
[340079728,1728474658409,-290.518608,0.00040547,14]
[340079729,1728474658418,-500.0,0.00040547,30]
[340079730,1728474658428,-500.0,0.00040547,30]
[340079731,1728474658438,-500.0,0.00040547,30]
[340079732,1728474658448,-3144.68,0.00040547,30]
[340079733,1728474658457,-500.0,0.00040547,30]
[340079734,1728474658466,-185.34880873,0.00040547,30]
[340079735,1728474658476,-500.0,0.00040547,30]
[340079736,1728474658485,-516.07,0.00040547,30]
[340079737,1728474658495,-500.0,0.00040547,30]
[340079738,1728474658504,-1660.54,0.00040547,30]
[340079739,1728474658514,-500.0,0.00040547,30]
[340079740,1728474658523,-500.0,0.00040547,30]
[340079741,1728474658533,-500.0,0.00040547,30]
[340079742,1728474658542,-500.0,0.00040547,30]
[340079743,1728474658552,-500.0,0.00040547,30]
[340079744,1728474658561,-511.35,0.00040547,30]
[340079745,1728474658571,-500.0,0.00040547,30]
[340079746,1728474658580,-1623.1,0.00040547,30]
[340079747,1728474658591,-151.0,0.00040547,14]
[340079748,1728474658605,-1133.39,0.00040547,30]
[340079749,1728474658614,-500.0,0.00040547,30]
[340079750,1728474658623,-500.0,0.00040547,30]
[340079751,1728474658633,-263.16533483,0.00040547,30]
[340079752,1728474658643,-151.0,0.00040547,14]
[340079753,1728474658652,-500.0,0.00040547,30]
[340079754,1728474658661,-520.14,0.00040547,30]
[340079755,1728474658671,-752.04,0.00040547,30]
[340079756,1728474658680,-500.0,0.00040547,30]
[340079757,1728474658700,-500.0,0.00040547,30]
[340079758,1728474658717,-500.0,0.00040547,30]
[340079759,1728474658737,-500.0,0.00040547,30]
[340079760,1728474658756,-500.0,0.00040547,30]
[340079761,1728474658776,-151.0,0.00040547,14]
[340079762,1728474658792,-500.0,0.00040547,30]
[340079763,1728474658810,-500.0,0.00040547,30]
[340079764,1728474658825,-500.0,0.00040547,30]
[340079765,1728474658842,-500.0,0.00040547,30]
[340079766,1728474658860,-500.0,0.00040547,30]
[340079767,1728474658880,-500.0,0.00040547,30]
[340079768,1728474658892,-500.0,0.00040547,30]
[340079769,1728474658909,-1187.39,0.00040547,30]
[340079770,1728474658925,-6906.1,0.00040547,30]
[340079771,1728474658942,-151.0,0.00040547,14]
[340079772,1728474658954,-965.23,0.00040547,30]
[340079773,1728474658970,-500.0,0.00040547,30]
[340079774,1728474658984,-500.0,0.00040547,30]
[340079775,1728474658999,-151.0,0.00040547,14]
[340079776,1728474659013,-850.98,0.00040547,30]
[340079777,1728474659027,-500.0,0.00040547,30]
[340079778,1728474659043,-740.41,0.00040547,30]
[340079779,1728474659057,-929.93,0.00040547,30]
[340079780,1728474659072,-500.0,0.00040547,30]
[340079781,1728474659087,-500.0,0.00040547,30]
[340079782,1728474659102,-500.0,0.00040547,30]
[340079783,1728474659116,-500.0,0.00040547,30]
[340079784,1728474659133,-2338.34,0.00040547,30]
[340079785,1728474659148,-500.0,0.00040547,30]
[340079786,1728474659162,-151.0,0.00040547,14]
[340079787,1728474659177,-176.3764358,0.00040547,30]
[340079788,1728474659192,-500.0,0.00040547,30]
[340079789,1728474659206,-1204.18,0.00040547,30]
[340079790,1728474659220,-5566.38,0.00040547,30]
[340079791,1728474659234,-500.0,0.00040547,30]
[340079792,1728474659248,-151.0,0.00040547,14]
[340079793,1728474659264,-500.0,0.00040547,30]
[340079794,1728474659278,-500.0,0.00040547,30]
[340079795,1728474659292,-500.0,0.00040547,30]
[340079796,1728474659307,-500.0,0.00040547,30]
[340079797,1728474659321,-500.0,0.00040547,30]
[340079798,1728474659337,-500.0,0.00040547,30]
[340079799,1728474659354,-500.0,0.00040547,30]
[340079800,1728474659368,-500.0,0.00040547,30]
[340079801,1728474659383,-500.0,0.00040547,30]
[340079802,1728474659397,-500.0,0.00040547,30]
[340079803,1728474659412,-888.83,0.00040547,30]
[340079804,1728474659422,-500.0,0.00040547,30]
[340079805,1728474659432,-500.0,0.00040547,30]
[340079806,1728474659441,-153.747472,0.00040547,14]
[340079807,1728474659451,-500.0,0.00040547,30]
[340079808,1728474659460,-151.0,0.00040547,14]
[340079809,1728474659469,-952.39,0.00040547,30]
[340079810,1728474659479,-153.747472,0.00040547,14]
[340079811,1728474659488,-500.0,0.00040547,30]
[340079812,1728474659498,-806.49,0.00040547,30]
[340079813,1728474659507,-181.17658106,0.00040547,30]
[340079814,1728474659517,-637.2,0.00040547,30]
[340079815,1728474659526,-240.784711,0.00040547,14]
[340079816,1728474659706,-500.0,0.00040547,30]
[340079817,1728474659718,-500.0,0.00040547,30]
[340079818,1728474659727,-240.784711,0.00040547,14]
[340079819,1728474659737,-165.642014,0.00040547,7]
[340079820,1728474659747,-500.0,0.00040547,30]
[340079821,1728474659756,-500.0,0.00040547,30]
[340079822,1728474659766,-165.642014,0.00040547,7]
[340079823,1728474659775,-533.54982693,0.00040547,30]
[340079824,1728474659784,-500.0,0.00040547,30]
[340079825,1728474659793,-1108.84,0.00040547,30]
[340079826,1728474659803,-500.0,0.00040547,30]
[340079827,1728474659813,-500.0,0.00040547,30]
[340079828,1728474659823,-656.99,0.00040547,30]
[340079829,1728474659833,-500.0,0.00040547,30]
[340079830,1728474659843,-500.0,0.00040547,30]
[340079831,1728474659853,-500.0,0.00040547,30]
[340079832,1728474659862,-500.0,0.00040547,30]
[340079833,1728474659871,-500.0,0.00040547,30]
[340079834,1728474659881,-500.0,0.00040547,30]
[340079835,1728474659890,-1838.69,0.00040547,30]
[340079836,1728474659900,-548.26981191,0.00040547,30]
[340079837,1728474659910,-919.89,0.00040547,30]
[340079838,1728474659919,-1319.95,0.00040547,14]
[340079839,1728474659929,-544.03,0.00040547,30]
[340079840,1728474659938,-589.03,0.00040547,30]
[340079841,1728474659947,-500.0,0.00040547,30]
[340079842,1728474659957,-500.0,0.00040547,30]
[340079843,1728474659966,-500.0,0.00040547,30]
[340079844,1728474659976,-1370.58,0.00040547,30]
[340079845,1728474659985,-500.0,0.00040547,30]
[340079846,1728474659995,-500.0,0.00040547,30]
[340079847,1728474660005,-500.0,0.00040547,30]
[340079848,1728474660014,-500.0,0.00040547,30]
[340079849,1728474660023,-500.0,0.00040547,30]
[340079850,1728474660033,-570.96,0.00040547,30]
[340079851,1728474660043,-500.0,0.00040547,30]
[340079852,1728474660052,-500.0,0.00040547,30]
[340079853,1728474660062,-1052.26,0.00040547,30]
[340079854,1728474660072,-27071.03,0.00040547,30]
[340079855,1728474660082,-500.0,0.00040547,30]
[340079856,1728474660092,-500.0,0.00040547,21]
[340079857,1728474660102,-500.0,0.00040547,30]
[340079858,1728474660112,-500.0,0.00040547,30]
[340079859,1728474660122,-2425.88,0.00040547,30]
[340079860,1728474660132,-2218.3,0.00040547,30]
[340079861,1728474660141,-956.91,0.00040547,30]
[340079862,1728474660151,-500.0,0.00040547,30]
[340079863,1728474660161,-500.0,0.00040547,30]
[340079864,1728474660171,-321.12,0.00040562,2]
[340079865,1728474660180,-300.0,0.00041,120]
[340079866,1728474660190,-20208.79910057,0.00041,10]
[340079867,1728474660200,-603.41508732,0.00041,20]
[340079868,1728474660210,-151.0,0.00041095,7]
[340079869,1728474660220,-500.0,0.00041095,5]
[340079870,1728474660230,-151.0,0.00041095,14]
[340079871,1728474660239,-500.0,0.00041095,120]
[340079872,1728474660249,-500.0,0.00041095,120]
[340079873,1728474660258,-500.0,0.00041095,120]
[340079874,1728474660272,-151.0,0.00041095,14]
[340079875,1728474660282,-500.0,0.00041095,120]
[340079876,1728474660291,-2048.58,0.00041095,120]
[340079877,1728474660300,-303.33381935,0.00041095,2]
[340079878,1728474660310,-500.0,0.00041095,120]
[340079879,1728474660319,-178.90370621,0.00041095,120]
[340079880,1728474660330,-500.0,0.00041095,120]
[340079881,1728474660339,-151.0,0.00041095,14]
[340079882,1728474660350,-500.0,0.00041095,120]
[340079883,1728474660360,-500.0,0.00041095,30]
[340079884,1728474660370,-500.0,0.00041095,120]
[340079885,1728474660380,-151.0,0.00041095,14]
[340079886,1728474660390,-500.0,0.00041095,120]
[340079887,1728474660400,-499.14105078,0.00041095,120]
[340079888,1728474660410,-500.0,0.00041095,120]
[340079889,1728474660420,-151.0,0.00041095,14]
[340079890,1728474660429,-1194.79,0.00041095,120]
[340079891,1728474660438,-500.0,0.00041095,120]
[340079892,1728474660448,-1534.88,0.00041095,120]
[340079893,1728474660457,-500.0,0.00041095,120]
[340079894,1728474660467,-151.0,0.00041095,14]
[340079895,1728474660477,-151.0,0.00041095,14]
[340079896,1728474660487,-500.0,0.00041095,120]
[340079897,1728474660496,-500.0,0.00041095,120]
[340079898,1728474660506,-500.0,0.00041095,120]
[340079899,1728474660516,-500.0,0.00041095,120]
[340079900,1728474660525,-151.0,0.00041095,14]
[340079901,1728474660535,-500.0,0.00041095,120]
[340079902,1728474660544,-1943.47,0.00041095,120]
[340079903,1728474660553,-1063.79,0.00041095,120]
[340079904,1728474660563,-153.519986,0.00041095,14]
[340079905,1728474660572,-500.0,0.00041095,120]
[340079906,1728474660582,-700.0,0.00041095,120]
[340079907,1728474660592,-500.0,0.00041095,120]
[340079908,1728474660602,-153.730947,0.00041095,14]
[340079909,1728474660611,-500.0,0.00041095,120]
[340079910,1728474660622,-500.0,0.00041095,120]
[340079911,1728474660631,-500.0,0.00041095,120]
[340079912,1728474660640,-151.0,0.00041095,14]
[340079913,1728474660650,-500.0,0.00041095,120]
[340079914,1728474660659,-270.21777171,0.00041095,120]
[340079915,1728474660669,-500.0,0.00041095,120]
[340079916,1728474660679,-1251.76,0.00041095,120]
[340079917,1728474660688,-500.0,0.00041095,120]
[340079918,1728474660698,-500.0,0.00041095,120]
[340079919,1728474660707,-682.14,0.00041095,120]
[340079920,1728474660717,-151.0,0.00041095,14]
[340079921,1728474660726,-1200.4,0.00041095,120]
[340079922,1728474660737,-500.0,0.00041095,120]
[340079923,1728474660747,-500.0,0.00041095,120]
[340079924,1728474660757,-151.977906,0.00041095,14]
[340079925,1728474660766,-615.71213051,0.00041095,120]
[340079926,1728474660775,-500.0,0.00041095,120]
[340079927,1728474660785,-151.0,0.00041095,14]
[340079928,1728474660794,-500.0,0.00041095,120]
[340079929,1728474660804,-500.0,0.00041095,120]
[340079930,1728474660814,-500.0,0.00041095,120]
[340079931,1728474660823,-500.0,0.00041095,120]
[340079932,1728474660833,-500.0,0.00041095,120]
[340079933,1728474660842,-500.0,0.00041095,120]
[340079934,1728474660852,-151.558349,0.00041095,14]
[340079935,1728474660861,-151.0,0.00041095,14]
[340079936,1728474660870,-151.0,0.00041095,14]
[340079937,1728474660880,-500.0,0.00041095,120]
[340079938,1728474660889,-500.0,0.00041095,120]
[340079939,1728474660898,-578.02,0.00041095,120]
[340079940,1728474660908,-157.192819,0.00041095,14]
[340079941,1728474660917,-176.4413126,0.00041095,120]
[340079942,1728474660927,-701.09,0.00041095,120]
[340079943,1728474660937,-157.192819,0.00041095,14]
[340079944,1728474660946,-151.0,0.00041095,14]
[340079945,1728474660956,-151.0,0.00041095,14]
[340079946,1728474660966,-151.0,0.00041095,14]
[340079947,1728474660975,-500.0,0.00041095,120]
[340079948,1728474660986,-155.314495,0.00041095,14]
[340079949,1728474660996,-151.472263,0.00041095,14]
[340079950,1728474661007,-500.0,0.00041095,120]
[340079951,1728474661016,-500.0,0.00041095,120]
[340079952,1728474661026,-500.0,0.00041095,120]
[340079953,1728474661035,-500.0,0.00041095,120]
[340079954,1728474661045,-500.0,0.00041095,120]
[340079955,1728474661054,-500.0,0.00041095,120]
[340079956,1728474661064,-500.0,0.00041095,120]
[340079957,1728474661073,-152.84008,0.00041095,14]
[340079958,1728474661083,-151.495505,0.00041095,14]
[340079959,1728474661092,-500.0,0.00041095,120]
[340079960,1728474661102,-500.0,0.00041095,120]
[340079961,1728474661112,-500.0,0.00041095,120]
[340079962,1728474661121,-1129.05,0.00041095,7]
[340079963,1728474661131,-500.0,0.00041095,120]
[340079964,1728474661140,-174.543601,0.00041095,14]
[340079965,1728474661150,-544.2,0.00041095,120]
[340079966,1728474661159,-174.543601,0.00041095,14]
[340079967,1728474661169,-2326.13,0.00041095,120]
[340079968,1728474661179,-500.0,0.00041095,120]
[340079969,1728474661191,-1235.1,0.00041095,120]
[340079970,1728474661200,-151.0,0.00041095,14]
[340079971,1728474661210,-151.0,0.00041095,14]
[340079972,1728474661220,-151.0,0.00041095,14]
[340079973,1728474661229,-500.0,0.00041095,120]
[340079974,1728474661239,-500.0,0.00041095,120]
[340079975,1728474661248,-776.22,0.00041095,120]
[340079976,1728474661257,-153.16967,0.00041095,14]
[340079977,1728474661271,-878.23,0.00041095,120]
[340079978,1728474661280,-333.2,0.00041095,120]
[340079979,1728474661290,-151.0,0.00041095,14]
[340079980,1728474661299,-649.1,0.00041095,120]
[340079981,1728474661309,-500.0,0.00041095,120]
[340079982,1728474661319,-500.0,0.00041095,120]
[340079983,1728474661329,-500.0,0.00041095,120]
[340079984,1728474661338,-4280.23,0.00041095,120]
[340079985,1728474661350,-500.0,0.00041095,120]
[340079986,1728474661360,-231.44088,0.00041095,14]
[340079987,1728474661369,-152.446191,0.00041095,14]
[340079988,1728474661378,-152.689059,0.00041095,14]
[340079989,1728474661389,-554.85,0.00041095,120]
[340079990,1728474661400,-151.0,0.00041095,14]
[340079991,1728474661411,-500.0,0.00041095,120]
[340079992,1728474661421,-1591.91,0.00041095,120]
[340079993,1728474661431,-171.706645,0.00041095,14]
[340079994,1728474661442,-500.0,0.00041095,120]
[340079995,1728474661452,-548.38,0.00041095,120]
[340079996,1728474661462,-152.068542,0.00041095,14]
[340079997,1728474661472,-500.0,0.00041095,120]
[340079998,1728474661481,-500.0,0.00041095,120]
[340079999,1728474661492,-500.0,0.00041095,120]
[340080000,1728474661503,-1790.13,0.00041095,120]
[340080001,1728474661513,-500.0,0.00041095,120]
[340080002,1728474661522,-151.0,0.00041095,14]
[340080003,1728474661531,-681.86,0.00041095,120]
[340080004,1728474661540,-500.0,0.00041095,120]
[340080005,1728474661550,-843.32,0.00041095,120]
[340080006,1728474661559,-500.0,0.00041095,120]
[340080007,1728474661569,-151.0,0.00041095,14]
[340080008,1728474661578,-151.0,0.00041095,14]
[340080009,1728474661587,-500.0,0.00041095,120]
[340080010,1728474661596,-151.249362,0.00041095,14]
[340080011,1728474661608,-604.97,0.00041095,120]
[340080012,1728474661617,-500.0,0.00041095,120]
[340080013,1728474661626,-500.0,0.00041095,120]
[340080014,1728474661635,-151.0,0.00041095,14]
[340080015,1728474661645,-1647.37,0.00041095,120]
[340080016,1728474661654,-677.99,0.00041095,120]
[340080017,1728474661663,-500.0,0.00041095,120]
[340080018,1728474661672,-500.0,0.00041095,120]
[340080019,1728474661681,-151.0,0.00041095,14]
[340080020,1728474661690,-152.251417,0.00041095,14]
[340080021,1728474661699,-500.0,0.00041095,120]
[340080022,1728474661709,-500.0,0.00041095,120]
[340080023,1728474661719,-151.0,0.00041095,14]
[340080024,1728474661728,-511.4555458,0.00041095,120]
[340080025,1728474661738,-448.56187588,0.00041095,120]
[340080026,1728474661748,-500.0,0.00041095,120]
[340080027,1728474661758,-500.0,0.00041095,120]
[340080028,1728474661768,-1538.29,0.00041095,120]
[340080029,1728474661778,-151.0,0.00041095,14]
[340080030,1728474661788,-500.0,0.00041095,120]
[340080031,1728474661798,-500.0,0.00041095,120]
[340080032,1728474661807,-500.0,0.00041095,120]
[340080033,1728474661816,-2791.23,0.00041095,120]
[340080034,1728474661826,-514.19,0.00041095,120]
[340080035,1728474661835,-576.42867009,0.00041095,120]
[340080036,1728474661845,-232.886713,0.00041095,14]
[340080037,1728474661860,-1386.33,0.00041095,120]
[340080038,1728474661869,-500.0,0.00041095,120]
[340080039,1728474661878,-700.1,0.00041095,120]
[340080040,1728474661887,-1315.33,0.00041095,120]
[340080041,1728474661897,-500.0,0.00041095,120]
[340080042,1728474661906,-587.62,0.00041095,120]
[340080043,1728474661917,-500.0,0.00041095,120]
[340080044,1728474661927,-500.0,0.00041095,120]
[340080045,1728474661936,-500.0,0.00041095,120]
[340080046,1728474661946,-648.89,0.00041095,120]
[340080047,1728474661955,-154.723051,0.00041095,14]
[340080048,1728474661964,-500.0,0.00041095,120]
[340080049,1728474661973,-500.0,0.00041095,120]
[340080050,1728474661982,-500.0,0.00041095,120]
[340080051,1728474661991,-500.0,0.00041095,120]
[340080052,1728474662001,-500.0,0.00041095,120]
[340080053,1728474662010,-2775.18,0.00041095,120]
[340080054,1728474662020,-151.0,0.00041095,14]
[340080055,1728474662029,-588.63399973,0.00041095,2]
[340080056,1728474662039,-555.53,0.00041095,120]
[340080057,1728474662048,-151.0,0.00041095,14]
[340080058,1728474662057,-500.0,0.00041095,120]
[340080059,1728474662066,-627.06,0.00041095,120]
[340080060,1728474662076,-151.0,0.00041095,14]
[340080061,1728474662086,-1709.31,0.00041095,120]
[340080062,1728474662097,-151.0,0.00041095,14]
[340080063,1728474662106,-151.0,0.00041095,14]
[340080064,1728474662115,-151.0,0.00041095,14]
[340080065,1728474662125,-500.0,0.00041095,120]
[340080066,1728474662134,-500.0,0.00041095,120]
[340080067,1728474662144,-152.297104,0.00041095,14]
[340080068,1728474662153,-748.87,0.00041095,120]
[340080069,1728474662167,-157.982853,0.00041095,14]
[340080070,1728474662281,-1645.12,0.00041095,120]
[340080071,1728474662290,-151.0,0.00041095,14]
[340080072,1728474662301,-500.0,0.00041095,120]
[340080073,1728474662311,-500.0,0.00041095,120]
[340080074,1728474662321,-500.0,0.00041095,120]
[340080075,1728474662331,-500.0,0.00041095,120]
[340080076,1728474662340,-500.0,0.00041095,120]
[340080077,1728474662352,-151.0,0.00041095,14]
[340080078,1728474662361,-500.0,0.00041095,120]
[340080079,1728474662371,-500.0,0.00041095,120]
[340080080,1728474662381,-593.51,0.00041095,120]
[340080081,1728474662392,-500.0,0.00041095,120]
[340080082,1728474662403,-500.0,0.00041095,120]
[340080083,1728474662412,-151.0,0.00041095,14]
[340080084,1728474662423,-393.46688328,0.00041095,7]
[340080085,1728474662434,-500.0,0.00041095,120]
[340080086,1728474662443,-1016.84,0.00041095,120]
[340080087,1728474662453,-1469.97,0.00041095,30]
[340080088,1728474662462,-500.0,0.00041095,120]
[340080089,1728474662473,-1469.97,0.00041095,30]
[340080090,1728474662482,-1821.33,0.00041095,120]
[340080091,1728474662492,-1469.97,0.00041095,30]
[340080092,1728474662503,-174.467267,0.00041095,14]
[340080093,1728474662513,-1469.97,0.00041095,30]
[340080094,1728474662523,-1469.97,0.00041095,30]
[340080095,1728474662533,-1469.97,0.00041095,120]
[340080096,1728474662545,-500.0,0.00041095,120]
[340080097,1728474662555,-174.467267,0.00041095,14]
[340080098,1728474662566,-500.0,0.00041095,120]
[340080099,1728474662577,-500.0,0.00041095,120]
[340080100,1728474662586,-990.39,0.00041095,120]
[340080101,1728474662596,-500.0,0.00041095,120]
[340080102,1728474662605,-5329.07,0.00041095,120]
[340080103,1728474662614,-500.0,0.00041095,120]
[340080104,1728474662623,-743.21,0.00041095,120]
[340080105,1728474662633,-151.0,0.00041095,14]
[340080106,1728474662643,-500.0,0.00041095,120]
[340080107,1728474662652,-580.88,0.00041095,120]
[340080108,1728474662661,-151.0,0.00041095,14]
[340080109,1728474662670,-500.0,0.00041095,120]
[340080110,1728474662679,-557.49,0.00041095,120]
[340080111,1728474662690,-450.0,0.00041095,30]
[340080112,1728474662701,-500.0,0.00041095,120]
[340080113,1728474662712,-500.0,0.00041095,120]
[340080114,1728474662722,-500.0,0.00041095,120]
[340080115,1728474662732,-500.0,0.00041095,120]
[340080116,1728474662743,-1516.28,0.00041095,120]
[340080117,1728474662753,-500.0,0.00041095,120]
[340080118,1728474662762,-1601.85,0.00041095,120]
[340080119,1728474662771,-6541.43,0.00041095,120]
[340080120,1728474662780,-500.0,0.00041095,120]
[340080121,1728474662789,-500.0,0.00041095,120]
[340080122,1728474662799,-511.66,0.00041095,120]
[340080123,1728474662808,-500.0,0.00041095,120]
[340080124,1728474662817,-500.0,0.00041095,120]
[340080125,1728474662826,-535.82542692,0.00041095,120]
[340080126,1728474662835,-3144.68,0.00041095,120]
[340080127,1728474662845,-500.0,0.00041095,120]
[340080128,1728474662855,-500.0,0.00041095,120]
[340080129,1728474662864,-516.07,0.00041095,120]
[340080130,1728474662875,-500.0,0.00041095,120]
[340080131,1728474662887,-1660.54,0.00041095,120]
[340080132,1728474662896,-500.0,0.00041095,120]
[340080133,1728474662906,-500.0,0.00041095,120]
[340080134,1728474662915,-500.0,0.00041095,120]
[340080135,1728474662924,-500.0,0.00041095,120]
[340080136,1728474662934,-500.0,0.00041095,120]
[340080137,1728474662942,-511.35,0.00041095,120]
[340080138,1728474662952,-500.0,0.00041095,120]
[340080139,1728474662961,-1623.1,0.00041095,120]
[340080140,1728474662971,-1133.39,0.00041095,120]
[340080141,1728474662980,-500.0,0.00041095,120]
[340080142,1728474662990,-500.0,0.00041095,120]
[340080143,1728474663000,-500.0,0.00041095,120]
[340080144,1728474663011,-520.14,0.00041095,120]
[340080145,1728474663020,-500.0,0.00041095,120]
[340080146,1728474663030,-752.04,0.00041095,120]
[340080147,1728474663039,-500.0,0.00041095,120]
[340080148,1728474663049,-500.0,0.00041095,120]
[340080149,1728474663060,-500.0,0.00041095,120]
[340080150,1728474663070,-500.0,0.00041095,120]
[340080151,1728474663079,-500.0,0.00041095,120]
[340080152,1728474663089,-500.0,0.00041095,120]
[340080153,1728474663098,-500.0,0.00041095,120]
[340080154,1728474663107,-500.0,0.00041095,120]
[340080155,1728474663117,-500.0,0.00041095,120]
[340080156,1728474663126,-500.0,0.00041095,120]
[340080157,1728474663136,-500.0,0.00041095,120]
[340080158,1728474663146,-1187.39,0.00041095,120]
[340080159,1728474663155,-6906.1,0.00041095,120]
[340080160,1728474663165,-965.23,0.00041095,120]
[340080161,1728474663174,-500.0,0.00041095,120]
[340080162,1728474663184,-500.0,0.00041095,120]
[340080163,1728474663194,-850.98,0.00041095,120]
[340080164,1728474663204,-500.0,0.00041095,120]
[340080165,1728474663214,-740.41,0.00041095,120]
[340080166,1728474663224,-929.93,0.00041095,120]
[340080167,1728474663234,-500.0,0.00041095,120]
[340080168,1728474663243,-500.0,0.00041095,120]
[340080169,1728474663253,-500.0,0.00041095,120]
[340080170,1728474663265,-500.0,0.00041095,120]
[340080171,1728474663276,-2338.34,0.00041095,120]
[340080172,1728474663286,-500.0,0.00041095,120]
[340080173,1728474663295,-500.0,0.00041095,120]
[340080174,1728474663305,-1204.18,0.00041095,120]
[340080175,1728474663314,-5566.38,0.00041095,120]
[340080176,1728474663323,-500.0,0.00041095,120]
[340080177,1728474663332,-500.0,0.00041095,120]
[340080178,1728474663341,-325.23685188,0.00041095,120]
[340080179,1728474663354,-500.0,0.00041095,120]
[340080180,1728474663363,-500.0,0.00041095,120]
[340080181,1728474663372,-500.0,0.00041095,120]
[340080182,1728474663382,-534.17807335,0.00041095,120]
[340080183,1728474663391,-500.0,0.00041095,120]
[340080184,1728474663400,-500.0,0.00041095,120]
[340080185,1728474663411,-500.0,0.00041095,120]
[340080186,1728474663421,-500.0,0.00041095,120]
[340080187,1728474663431,-888.83,0.00041095,120]
[340080188,1728474663440,-500.0,0.00041095,120]
[340080189,1728474663449,-500.0,0.00041095,120]
[340080190,1728474663459,-500.0,0.00041095,120]
[340080191,1728474663468,-151.0,0.00041095,14]
[340080192,1728474663477,-151.0,0.00041095,14]
[340080193,1728474663486,-952.39,0.00041095,120]
[340080194,1728474663495,-500.0,0.00041095,120]
[340080195,1728474663505,-806.49,0.00041095,120]
[340080196,1728474663514,-637.2,0.00041095,120]